bitfinex/quotes_SOLUSD_20220101
["timestamp","ask_amount","ask_price","bid_price","bid_amount"]
[1641040560093,10.2919,172.78,172.67,8.6861]
[1641040560893,10.7919,172.78,172.67,8.6861]
[1641040561193,10.7919,172.78,172.67,8.9461]
[1641040561392,10.5319,172.78,172.67,8.9461]
[1641040561597,10.0319,172.78,172.67,8.9461]
[1641040563399,10.2919,172.78,172.67,8.9461]
[1641040566135,10.2919,172.78,172.67,8.6861]
[1641040567334,10.0319,172.78,172.67,8.6861]
[1641040567536,10.0319,172.78,172.67,8.9461]
[1641040568339,10.0319,172.78,172.67,10.37279368]
[1641040568939,1.3476,172.78,172.67,10.37279368]
[1641040569137,8.6836,172.8,172.67,10.37279368]
[1641040569538,8.9436,172.8,172.67,10.37279368]
[1641040570538,1.2814,172.79,172.67,10.37279368]
[1641040575543,1.2814,172.79,172.67,11.67529368]
[1641040581157,0.26,172.8,172.67,11.67529368]
[1641040581359,75.4789,172.81,172.67,11.67529368]
[1641040581857,74.2272,172.81,172.67,11.67529368]
[1641040585109,75.4677,172.81,172.67,11.67529368]
[1641040586011,75.2077,172.81,172.67,11.67529368]
[1641040587514,75.4677,172.81,172.67,11.67529368]
[1641040591545,75.2077,172.81,172.67,11.67529368]
[1641040594149,75.2077,172.81,172.67,11.41529368]
[1641040594347,84.1504,172.81,172.67,11.41529368]
[1641040594549,84.1504,172.81,172.67,9.9886]
[1641040595351,84.1504,172.81,172.67,11.41529368]
[1641040595550,84.1504,172.81,172.67,11.67529368]
[1641040595752,83.8904,172.81,172.67,11.41529368]
[1641040595951,84.1504,172.81,172.67,9.9886]
[1641040596352,83.8904,172.81,172.67,9.9886]
[1641040596851,83.8904,172.81,172.67,11.41529368]
[1641040597052,83.8904,172.81,172.67,11.67529368]
[1641040597453,83.8904,172.81,172.67,10.2486]
[1641040597951,84.6504,172.81,172.67,10.2486]
[1641040598752,84.6504,172.81,172.67,11.67529368]
[1641040598954,84.1504,172.81,172.67,11.67529368]
[1641040599181,84.6504,172.81,172.67,11.67529368]
[1641040599353,84.1504,172.81,172.67,11.67529368]
[1641040602357,84.6504,172.81,172.67,11.67529368]
[1641040603460,83.8904,172.81,172.67,11.67529368]
[1641040603661,73.9672,172.81,172.67,11.67529368]
[1641040605260,74.2272,172.81,172.67,11.41529368]
[1641040605662,73.9672,172.81,172.67,11.41529368]
[1641040607063,74.2272,172.81,172.67,11.41529368]
[1641040607264,73.9672,172.81,172.67,11.41529368]
[1641040607568,82.91,172.81,172.67,11.67529368]
[1641040607763,82.65,172.81,172.67,11.67529368]
[1641040609966,73.9672,172.81,172.67,11.67529368]
[1641040613877,82.9099,172.81,172.67,11.67529368]
[1641040614079,82.6499,172.81,172.67,11.67529368]
[1641040614495,82.9099,172.81,172.67,11.67529368]
[1641040614795,82.6499,172.81,172.67,11.67529368]
[1641040615196,73.9672,172.81,172.67,11.67529368]
[1641040618198,82.9101,172.81,172.67,11.41529368]
[1641040618697,83.4101,172.81,172.67,11.41529368]
[1641040619098,1.3456,172.8,172.67,11.41529368]
[1641040619297,8.6841,172.79,172.67,11.41529368]
[1641040619501,8.9441,172.79,172.67,11.67529368]
[1641040619701,8.6841,172.79,172.67,11.67529368]
[1641040619901,73.9672,172.81,172.67,11.67529368]
[1641040620105,1.331,172.8,172.67,11.67529368]
[1641040621603,10.0141,172.8,172.67,11.67529368]
[1641040623005,10.2741,172.8,172.67,11.67529368]
[1641040626110,10.2741,172.8,172.67,8.9461]
[1641040626810,10.2741,172.8,172.67,10.37279368]
[1641040627010,10.7741,172.8,172.67,10.37279368]
[1641040627613,10.7741,172.8,172.67,11.69999368]
[1641040629715,10.2741,172.8,172.67,11.69999368]
[1641040643254,10.7741,172.8,172.67,11.69999368]
[1641040646060,10.2741,172.8,172.67,11.69999368]
[1641040647261,10.2741,172.8,172.67,11.43999368]
[1641040647462,10.7741,172.8,172.67,8.6861]
[1641040650867,10.7741,172.8,172.67,8.9461]
[1641040674323,10.5141,172.8,172.67,8.9461]
[1641040675126,10.0141,172.8,172.67,8.9461]
[1641040675326,10.5141,172.8,172.68,1.3068]
[1641040675526,10.5141,172.8,172.7,8.6845]
[1641040675732,10.7741,172.8,172.7,8.6845]
[1641040675930,10.7741,172.8,172.7,8.9445]
[1641040678830,10.0141,172.8,172.7,8.9445]
[1641040679029,2.333395,172.82,172.7,8.9445]
[1641040679230,3.574795,172.82,172.7,10.37119368]
[1641040679529,3.574795,172.82,172.7,8.9445]
[1641040679931,23.31650686,172.81,172.75,8.6823]
[1641040680332,23.31650686,172.81,172.75,8.9423]
[1641040682437,12.256895,172.82,172.75,8.9423]
[1641040684539,12.516895,172.82,172.75,8.9423]
[1641040685957,13.016895,172.82,172.75,8.9423]
[1641040688762,13.016895,172.82,172.75,8.6823]
[1641040689464,12.756895,172.82,172.75,8.6823]
[1641040690065,13.016895,172.82,172.75,8.6823]
[1641040690468,12.756895,172.82,172.75,8.9423]
[1641040691864,12.756895,172.82,172.75,8.6823]
[1641040692064,13.016895,172.82,172.75,8.6823]
[1641040693067,13.016895,172.82,172.74,8.683]
[1641040693267,13.016895,172.82,172.69,105.3499]
[1641040693466,92.250495,172.82,172.7,1.3412]
[1641040694468,92.250495,172.82,172.7,1.6012]
[1641040694667,92.250495,172.82,172.72,8.684]
[1641040697777,86.291495,172.82,172.72,8.944]
[1641040698779,86.031495,172.82,172.72,8.944]
[1641040699179,86.031495,172.82,172.72,10.22]
[1641040699979,3.574795,172.82,172.72,10.22]
[1641040704282,12.256895,172.82,172.72,10.22]
[1641040704483,12.516895,172.82,172.72,10.22]
[1641040704684,13.016895,172.82,172.72,10.22]
[1641040704885,12.516895,172.82,172.72,10.22]
[1641040705087,13.016895,172.82,172.72,10.22]
[1641040705286,12.516895,172.82,172.72,10.22]
[1641040705485,12.256895,172.82,172.72,10.22]
[1641040705690,12.516895,172.82,172.72,10.22]
[1641040705887,13.016895,172.82,172.72,10.22]
[1641040706286,12.516895,172.82,172.72,10.22]
[1641040706486,13.016895,172.82,172.72,10.22]
[1641040706688,12.516895,172.82,172.72,8.944]
[1641040706890,12.516895,172.82,172.63,5.28496977]
[1641040706891,13.016895,172.82,172.63,5.28496977]
[1641040707086,72.632,172.81,172.67,2.6057]
[1641040707286,72.632,172.81,172.6,9.25531132]
[1641040707488,75.4229,172.8,172.63,1.2888]
[1641040707686,76.7638,172.8,172.63,1.2888]
[1641040707887,77.5238,172.8,172.64,24.69373834]
[1641040708085,77.5238,172.8,172.64,24.95373834]
[1641040708689,8.6857,172.75,172.68,8.6857]
[1641040708889,0.59944541,172.76,172.68,8.6857]
[1641040709090,0.59944541,172.76,172.68,8.9457]
[1641040709489,77.5238,172.8,172.68,8.9457]
[1641040709689,85.7075,172.8,172.68,8.9457]
[1641040709891,85.4475,172.8,172.68,8.9457]
[1641040710290,10.0246,172.8,172.69,1.2842]
[1641040710490,31.87940275,172.8,172.73,8.6831]
[1641040710893,23.19570275,172.8,172.73,8.9431]
[1641040711092,23.19570275,172.8,172.73,8.6831]
[1641040712813,31.87900275,172.8,172.73,8.6831]
[1641040713815,31.87900275,172.8,172.73,0.26]
[1641040714619,31.87900275,172.8,172.72,8.9436]
[1641040718119,31.87900275,172.8,172.72,8.6836]
[1641040718322,32.13900275,172.8,172.72,8.6836]
[1641040719521,32.13900275,172.8,172.72,8.9436]
[1641040722926,32.13900275,172.8,172.72,0.26]
[1641040723126,32.63900275,172.8,172.71,8.9442]
[1641040723327,32.63900275,172.8,172.71,8.6842]
[1641040723726,32.13900275,172.8,172.71,8.6842]
[1641040723927,31.87900275,172.8,172.71,8.6842]
[1641040724727,31.87900275,172.8,172.71,8.9442]
[1641040726328,23.19570275,172.8,172.71,8.9442]
[1641040729130,31.87890275,172.8,172.71,8.9442]
[1641040731933,31.87890275,172.8,172.71,8.6842]
[1641040732130,32.13890275,172.8,172.71,8.6842]
[1641040732531,31.87890275,172.8,172.71,8.6842]
[1641040733333,31.87890275,172.8,172.71,8.9442]
[1641040733534,11.015995,172.82,172.71,8.9442]
[1641040733735,2.333395,172.82,172.71,10.37089368]
[1641040734134,2.333395,172.82,172.71,15.92289368]
[1641040734737,2.333395,172.82,172.71,21.20786345]
[1641040734937,2.333395,172.82,172.71,30.46317477]
[1641040735635,2.333395,172.82,172.71,31.69337477]
[1641040743343,2.333395,172.82,172.71,31.43337477]
[1641040745147,2.333395,172.82,172.71,31.69337477]
[1641040746544,5.99849489,172.82,172.71,31.69337477]
[1641040747346,2.333395,172.82,172.71,31.69337477]
[1641040747545,2.333395,172.82,172.71,26.14137477]
[1641040747746,2.333395,172.82,172.71,25.88137477]
[1641040748148,2.333395,172.82,172.71,20.596405]
[1641040748949,1.3612,172.81,172.71,20.596405]
[1641040749547,1.3612,172.81,172.71,20.856405]
[1641040753379,2.333395,172.82,172.71,20.856405]
[1641040753979,2.333395,172.82,172.71,20.596405]
[1641040754177,2.333395,172.82,172.71,11.34109368]
[1641040754381,1.3403,172.81,172.71,8.6842]
[1641040754578,10.2834,172.81,172.71,8.6842]
[1641040754978,26.47508849,172.8,172.71,8.6842]
[1641040755477,26.73508849,172.8,172.69,8.6848]
[1641040755677,27.23508849,172.8,172.69,8.6848]
[1641040755878,8.6851,172.77,172.69,8.6848]
[1641040756078,8.9451,172.77,172.69,8.9448]
[1641040757377,9.4451,172.77,172.68,8.6857]
[1641040758380,8.9451,172.77,172.68,8.6857]
[1641040758877,9.4451,172.77,172.68,8.6857]
[1641040760479,9.4451,172.77,172.68,8.9457]
[1641040761479,1.307,172.76,172.68,8.9457]
[1641040761691,9.9923,172.76,172.68,8.9457]
[1641040761883,10.2523,172.76,172.68,8.9457]
[1641040763387,9.9923,172.76,172.68,8.9457]
[1641040766087,10.2523,172.76,172.68,0.26]
[1641040766487,10.2523,172.76,172.67,8.9462]
[1641040767488,10.7523,172.76,172.67,8.9462]
[1641040768589,10.4923,172.76,172.67,8.9462]
[1641040769788,9.9923,172.76,172.67,8.9462]
[1641040769988,10.2523,172.76,172.67,8.9462]
[1641040770188,9.9923,172.76,172.67,8.9462]
[1641040770991,10.2523,172.76,172.67,8.9462]
[1641040771193,10.2523,172.76,172.67,8.6862]
[1641040771590,10.2523,172.76,172.67,8.9462]
[1641040773192,1.567,172.76,172.67,8.9462]
[1641040775698,10.2523,172.76,172.67,8.9462]
[1641040777700,10.2523,172.76,172.67,8.6862]
[1641040777906,10.7523,172.76,172.66,8.6866]
[1641040778110,10.2523,172.76,172.66,8.6866]
[1641040779111,9.9923,172.76,172.66,8.9466]
[1641040780046,77.3355,172.79,172.67,1.42669368]
[1641040780243,78.691,172.79,172.72,8.6832]
[1641040780444,78.691,172.79,172.68,1.3485]
[1641040780646,78.691,172.79,172.72,0.26]
[1641040781244,78.691,172.79,172.68,1.6085]
[1641040781744,78.691,172.79,172.73,8.6832]
[1641040782143,78.691,172.79,172.73,8.9432]
[1641040785349,78.691,172.79,172.73,8.6832]
[1641040785551,78.951,172.79,172.72,8.6839]
[1641040785748,78.951,172.79,172.7,0.26]
[1641040786152,79.451,172.79,172.7,0.26]
[1641040786353,79.451,172.79,172.67,29.2062]
[1641040787153,88.1349,172.79,172.71,8.6844]
[1641040787553,88.1349,172.79,172.71,8.9444]
[1641040788154,87.6349,172.79,172.71,8.9444]
[1641040788956,87.3749,172.79,172.71,8.9444]
[1641040789356,87.8749,172.79,172.71,8.9444]
[1641040789556,87.3749,172.79,172.71,8.9444]
[1641040790259,87.6349,172.79,172.71,8.9444]
[1641040790474,88.1349,172.79,172.71,8.6844]
[1641040791575,87.6349,172.79,172.71,8.6844]
[1641040792079,87.6349,172.79,172.71,8.9444]
[1641040794278,87.3749,172.79,172.71,8.9444]
[1641040794480,87.6349,172.79,172.71,8.9444]
[1641040794881,88.1349,172.79,172.71,8.6844]
[1641040796083,87.8749,172.79,172.71,8.6844]
[1641040796392,87.3749,172.79,172.71,8.6844]
[1641040796583,87.6349,172.79,172.71,8.6844]
[1641040797383,88.1349,172.79,172.71,8.6844]
[1641040798586,88.1349,172.79,172.71,8.9444]
[1641040799585,87.3749,172.79,172.71,8.9444]
[1641040799986,1.3555,172.79,172.71,8.9444]
[1641040803897,1.3555,172.79,172.71,8.6844]
[1641040804095,1.6155,172.79,172.71,8.6844]
[1641040804997,1.6155,172.79,172.71,8.9444]
[1641040805497,1.6155,172.79,172.71,8.6844]
[1641040806899,1.6155,172.79,172.71,8.9444]
[1641040810806,1.3555,172.79,172.71,8.9444]
[1641040811004,23.13348325,172.81,172.71,8.9444]
[1641040811307,24.48008325,172.81,172.71,8.9444]
[1641040811506,25.24008325,172.81,172.71,8.6844]
[1641040811904,25.24008325,172.81,172.71,8.9444]
[1641040812405,24.74008325,172.81,172.71,8.9444]
[1641040812603,33.42278325,172.81,172.71,8.9444]
[1641040812805,33.92278325,172.81,172.71,8.9444]
[1641040813005,33.42278325,172.81,172.71,8.9444]
[1641040813707,33.92278325,172.81,172.71,8.9444]
[1641040814908,33.42278325,172.81,172.71,8.9444]
[1641040815806,33.92278325,172.81,172.71,8.9444]
[1641040816408,33.42278325,172.81,172.71,8.9444]
[1641040817012,33.92278325,172.81,172.71,8.9444]
[1641040818615,33.42278325,172.81,172.71,8.9444]
[1641040820717,33.92278325,172.81,172.71,8.9444]
[1641040821923,31.89508325,172.81,172.71,8.9444]
[1641040822121,23.21238325,172.81,172.71,10.37109368]
[1641040822322,21.86578325,172.81,172.71,10.37109368]
[1641040823127,2.333395,172.82,172.71,10.37109368]
[1641040823531,2.333395,172.82,172.71,11.67219368]
[1641040826743,2.333395,172.82,172.71,20.277505]
[1641040827148,2.333395,172.82,172.71,28.34256934]
[1641040827542,2.333395,172.82,172.71,33.2764609]
[1641040836558,2.333395,172.82,172.71,33.0164609]
[1641040838556,2.333395,172.82,172.71,33.2764609]
[1641040841661,11.15533672,172.82,172.71,28.08256934]
[1641040841864,11.15533672,172.82,172.71,20.017505]
[1641040842461,2.333395,172.82,172.71,20.017505]
[1641040843061,2.333395,172.82,172.71,20.277505]
[1641040847664,2.333395,172.82,172.71,20.017505]
[1641040849065,2.333395,172.82,172.71,20.277505]
[1641040849467,0.36287,172.83,172.71,20.277505]
[1641040850667,0.36287,172.83,172.71,20.017505]
[1641040851969,0.36287,172.83,172.71,20.277505]
[1641040853271,1.2881,172.82,172.71,20.277505]
[1641040853870,1.2881,172.82,172.71,18.976405]
[1641040854470,1.2881,172.82,172.71,20.217105]
[1641040854973,1.2881,172.82,172.71,11.61179368]
[1641040855577,1.2881,172.82,172.71,10.37109368]
[1641040855775,1.2881,172.82,172.71,10.11109368]
[1641040855971,1.2881,172.82,172.71,8.6844]
[1641040855972,2.0481,172.82,172.71,8.6844]
[1641040857374,2.0481,172.82,172.71,8.9444]
[1641040857671,10.7306,172.82,172.71,8.9444]
[1641040858080,10.7306,172.82,172.71,8.6844]
[1641040859673,10.7306,172.82,172.71,8.9444]
[1641040860774,10.2306,172.82,172.71,8.9444]
[1641040860974,1.5481,172.82,172.71,8.9444]
[1641040863775,1.2881,172.82,172.71,8.9444]
[1641040864981,1.2881,172.82,172.71,10.37109368]
[1641040865705,0.36287,172.83,172.71,10.37109368]
[1641040866109,1.65967,172.83,172.71,10.37109368]
[1641040868509,1.65967,172.83,172.71,18.976405]
[1641040872414,1.65967,172.83,172.71,17.54971132]
[1641040875817,1.65967,172.83,172.71,17.28971132]
[1641040877219,1.65967,172.83,172.71,17.54971132]
[1641040877420,1.65967,172.83,172.71,18.86801132]
[1641040886263,1.65967,172.83,172.71,8.6844]
[1641040886465,1.91967,172.83,172.71,8.6844]
[1641040887362,2.41967,172.83,172.71,8.6844]
[1641040887563,11.10147,172.83,172.71,8.9444]
[1641040887963,11.10147,172.83,172.71,8.6844]
[1641040891069,11.10147,172.83,172.71,8.9444]
[1641040905584,10.84147,172.83,172.71,8.9444]
[1641040906985,10.60147,172.83,172.71,8.9444]
[1641040907486,11.10147,172.83,172.71,8.9444]
[1641040909387,10.84147,172.83,172.71,8.9444]
[1641040909786,10.34147,172.83,172.71,8.9444]
[1641040910815,11.10147,172.83,172.71,8.9444]
[1641040912615,10.60147,172.83,172.71,8.9444]
[1641040913017,10.60147,172.83,172.71,10.286]
[1641040915516,11.10147,172.83,172.71,10.286]
[1641040916417,11.10147,172.83,172.71,8.6844]
[1641040917117,11.10147,172.83,172.67,1.3454]
[1641040918522,11.10147,172.83,172.67,1.6054]
[1641040918721,11.10147,172.83,172.72,8.6838]
[1641040919020,11.10147,172.83,172.72,8.9438]
[1641040921023,11.10147,172.83,172.71,8.6846]
[1641040922426,11.10147,172.83,172.71,8.9446]
[1641040923231,10.84147,172.83,172.71,8.9446]
[1641040924631,11.10147,172.83,172.71,8.9446]
[1641040931940,10.84147,172.83,172.71,8.9446]
[1641040932139,9.04467,172.83,172.71,8.9446]
[1641040932339,0.36287,172.83,172.72,1.42669368]
[1641040932641,0.36287,172.83,172.77,8.6808]
[1641040933048,0.36287,172.83,172.77,10.36749368]
[1641040941552,0.36287,172.83,172.77,8.6808]
[1641040941752,9.04487,172.83,172.73,2.76229368]
[1641040941957,9.04487,172.83,172.74,0.26]
[1641040942556,9.04487,172.83,172.73,3.02229368]
[1641040942965,9.54487,172.83,172.73,3.02229368]
[1641040943559,9.54487,172.83,172.75,8.6826]
[1641040943760,9.54487,172.83,172.75,8.9426]
[1641040943959,9.04487,172.83,172.75,8.9426]
[1641040944388,9.54487,172.83,172.75,8.9426]
[1641040948195,0.36287,172.83,172.76,1.42669368]
[1641040948596,0.36287,172.83,172.79,8.6789]
[1641040948995,0.36287,172.83,172.8,1.42669368]
[1641040949195,0.36287,172.83,172.81,6.06439993]
[1641040949597,0.36287,172.83,172.82,8.6782]
[1641040950000,0.36287,172.83,172.82,8.9382]
[1641040950198,0.36287,172.83,172.82,10.36489368]
[1641040956109,35.36287,172.83,172.82,1.42669368]
[1641040956311,35.36287,172.83,172.79,1.42669368]
[1641040956511,35.36287,172.83,172.73,1.2386]
[1641040956710,35.36287,172.83,172.7,1.251]
[1641040956911,35.36287,172.83,172.69,1.42669368]
[1641040957113,35.36287,172.83,172.7,25.44294803]
[1641040957311,35.86287,172.83,172.76,8.6815]
[1641040957715,35.36287,172.83,172.76,8.6815]
[1641040959627,35.36287,172.83,172.76,8.9415]
[1641040967049,35.36287,172.83,172.76,10.36819368]
[1641040967749,35.36287,172.83,172.76,8.9415]
[1641040968949,35.36287,172.83,172.76,10.36819368]
[1641040969551,35.36287,172.83,172.76,8.9415]
[1641040971059,35.36287,172.83,172.76,10.36819368]
[1641040971673,35.36287,172.83,172.77,21.04343295]
[1641040971859,35.36287,172.83,172.8,8.6778]
[1641040972064,35.36287,172.83,172.8,8.9378]
[1641040972864,35.36287,172.83,172.81,3.03219997]
[1641040973066,35.36287,172.83,172.82,8.6783]
[1641040973263,35.36287,172.83,172.82,11.71049996]
[1641040973563,35.36287,172.83,172.82,11.97049996]
[1641040979372,35.36287,172.83,172.82,11.71049996]
[1641040980574,35.36287,172.83,172.82,8.6783]
[1641040980776,35.36287,172.83,172.82,8.9383]
[1641040981175,35.36287,172.83,172.82,11.97049996]
[1641040982300,35.36287,172.83,172.82,11.71049996]
[1641040982501,35.36287,172.83,172.82,3.03219996]
[1641040983902,35.36287,172.83,172.81,11.71199997]
[1641040984103,35.36287,172.83,172.81,3.03219997]
[1641040984403,35.36287,172.83,172.81,6.06439993]
[1641040985404,35.36287,172.83,172.8,8.6801]
[1641040985606,35.36287,172.83,172.8,8.9401]
[1641040990023,35.86287,172.83,172.8,8.9401]
[1641040990423,35.36287,172.83,172.8,8.9401]
[1641040990631,35.36287,172.83,172.81,6.06439993]
[1641040990827,35.36287,172.83,172.8,8.9401]
[1641040995761,35.36287,172.83,172.77,8.6819]
[1641040995964,36.12287,172.83,172.7,1.3209]
[1641040996163,81.9478,172.82,172.7,1.3209]
[1641040996364,82.4478,172.82,172.68,1.42669368]
[1641040996562,1.2403,172.81,172.68,1.42669368]
[1641040996962,2.0003,172.81,172.68,1.42669368]
[1641040997164,8.6838,172.8,172.73,8.6838]
[1641040997363,9.1838,172.8,172.73,8.6838]
[1641040997563,9.4438,172.8,172.73,8.9438]
[1641040998165,9.1838,172.8,172.73,8.9438]
[1641040998366,0.5,172.8,172.73,8.9438]
[1641040998567,1.2403,172.81,172.73,8.9438]
[1641041000767,1.2403,172.81,172.73,10.37049368]
[1641041001168,73.2646,172.82,172.73,10.37049368]
[1641041002771,1.2809,172.81,172.73,10.37049368]
[1641041003370,73.2646,172.82,172.73,10.37049368]
[1641041003972,1.3075,172.81,172.73,10.37049368]
[1641041007075,73.2646,172.82,172.73,10.37049368]
[1641041007775,74.6004,172.82,172.73,10.37049368]
[1641041009280,74.6004,172.82,172.73,10.11049368]
[1641041009880,74.8604,172.82,172.73,10.11049368]
[1641041010582,74.6004,172.82,172.73,10.37049368]
[1641041011585,74.6004,172.82,172.73,10.11049368]
[1641041011808,74.6004,172.82,172.73,8.6838]
[1641041012209,74.6004,172.82,172.73,10.11049368]
[1641041013009,74.6004,172.82,172.73,10.37049368]
[1641041018212,74.6004,172.82,172.73,8.9438]
[1641041018811,74.8604,172.82,172.73,8.9438]
[1641041019011,74.8604,172.82,172.73,8.6838]
[1641041019612,83.5431,172.82,172.73,8.6838]
[1641041020014,74.8604,172.82,172.73,8.6838]
[1641041020515,74.8604,172.82,172.73,8.9438]
[1641041023716,83.543,172.82,172.73,8.9438]
[1641041024519,74.8604,172.82,172.73,8.9438]
[1641041026721,83.543,172.82,172.73,8.9438]
[1641041036430,74.6004,172.82,172.73,8.9438]
[1641041036631,0.362663,172.83,172.73,8.9438]
[1641041037933,1.2778,172.82,172.73,8.9438]
[1641041038533,1.2778,172.82,172.73,11.68679368]
[1641041038933,2.0378,172.82,172.73,8.6838]
[1641041040537,2.0378,172.82,172.73,8.9438]
[1641041040736,10.7205,172.82,172.73,8.9438]
[1641041043945,10.2205,172.82,172.73,8.9438]
[1641041045150,10.7205,172.82,172.73,8.9438]
[1641041047369,10.4605,172.82,172.73,8.9438]
[1641041047568,1.2778,172.82,172.73,8.9438]
[1641041048371,1.7778,172.82,172.73,8.9438]
[1641041048570,1.2778,172.82,172.73,8.9438]
[1641041049570,9.9604,172.82,172.73,8.9438]
[1641041050973,9.9604,172.82,172.73,10.37049368]
[1641041053879,10.7204,172.82,172.73,10.37049368]
[1641041054083,10.7204,172.82,172.73,8.9438]
[1641041054281,10.2204,172.82,172.73,8.9438]
[1641041054883,9.9604,172.82,172.73,8.9438]
[1641041055984,10.2204,172.82,172.73,8.9438]
[1641041056184,9.9604,172.82,172.73,8.9438]
[1641041058094,10.4604,172.82,172.73,8.9438]
[1641041058891,9.9604,172.82,172.73,8.9438]
[1641041060491,10.4604,172.82,172.73,8.9438]
[1641041061193,9.9604,172.82,172.73,10.37049368]
[1641041061691,1.2778,172.82,172.73,10.37049368]
[1641041062692,1.2778,172.82,172.73,11.69319368]
[1641041063393,9.9605,172.82,172.73,10.69319368]
[1641041065420,10.4605,172.82,172.73,10.69319368]
[1641041065623,9.9605,172.82,172.73,10.69319368]
[1641041069929,10.4605,172.82,172.73,10.69319368]
[1641041071739,9.9605,172.82,172.73,10.69319368]
[1641041071941,10.4605,172.82,172.73,10.69319368]
[1641041072135,9.9605,172.82,172.73,10.69319368]
[1641041072936,10.4605,172.82,172.73,10.69319368]
[1641041076139,10.4605,172.82,172.73,9.37049368]
[1641041080441,9.9605,172.82,172.73,9.37049368]
[1641041080642,10.4605,172.82,172.73,9.37049368]
[1641041080842,9.9605,172.82,172.73,9.37049368]
[1641041084276,1.2778,172.82,172.73,9.37049368]
[1641041085178,1.2778,172.82,172.73,10.71519368]
[1641041088579,9.9605,172.82,172.73,10.71519368]
[1641041090281,10.4605,172.82,172.73,10.71519368]
[1641041090481,10.4605,172.82,172.73,9.37049368]
[1641041090681,10.4605,172.82,172.73,7.9438]
[1641041091083,9.9605,172.82,172.73,7.9438]
[1641041092281,10.4605,172.82,172.73,7.9438]
[1641041094583,9.9605,172.82,172.73,7.9438]
[1641041094783,10.4605,172.82,172.73,7.9438]
[1641041094985,9.9605,172.82,172.73,7.9438]
[1641041095184,10.7205,172.82,172.73,7.6838]
[1641041095387,10.7205,172.82,172.71,8.6844]
[1641041095588,10.7205,172.82,172.69,2.71169368]
[1641041096485,10.7205,172.82,172.69,2.97169368]
[1641041097687,10.7205,172.82,172.71,8.6848]
[1641041098087,10.7205,172.82,172.71,8.9448]
[1641041107595,10.7205,172.82,172.71,8.6848]
[1641041108298,10.4605,172.82,172.71,8.6848]
[1641041108597,9.9605,172.82,172.74,8.6829]
[1641041108997,10.4605,172.82,172.74,8.6829]
[1641041109496,10.4605,172.82,172.74,8.9429]
[1641041109698,9.9605,172.82,172.74,8.9429]
[1641041109899,1.2778,172.82,172.74,8.9429]
[1641041110096,0.36258,172.83,172.75,23.18955041]
[1641041110299,0.36258,172.83,172.79,8.6802]
[1641041110498,0.36258,172.83,172.79,8.9402]
[1641041112202,8e-05,172.83,172.8,1.42669368]
[1641041112398,8e-05,172.83,172.81,14.74139993]
[1641041112599,8e-05,172.83,172.81,15.00139993]
[1641041112799,8e-05,172.83,172.81,16.42809361]
[1641041113003,8e-05,172.83,172.81,15.00139993]
[1641041121110,8e-05,172.83,172.81,8.937]
[1641041121309,8e-05,172.83,172.82,6.06439993]
[1641041122208,8e-05,172.83,172.82,3.03219996]
[1641041123611,8e-05,172.83,172.81,0.26]
[1641041123812,8e-05,172.83,172.82,6.06439993]
[1641041124613,8e-05,172.83,172.82,15.00359993]
[1641041126117,8e-05,172.83,172.82,6.32439993]
[1641041126516,8e-05,172.83,172.82,6.06439993]
[1641041127117,8e-05,172.83,172.82,31.06439993]
[1641041127920,8e-05,172.83,172.82,31.32439993]
[1641041128320,8e-05,172.83,172.82,40.00339993]
[1641041130624,8e-05,172.83,172.82,15.00339993]
[1641041130825,8e-05,172.83,172.82,6.32439993]
[1641041131027,8e-05,172.83,172.82,6.06439993]
[1641041131526,8e-05,172.83,172.82,6.32439993]
[1641041132150,8e-05,172.83,172.82,30.32439993]
[1641041132352,8e-05,172.83,172.82,39.00349993]
[1641041132752,8e-05,172.83,172.82,15.00349993]